[Event "Mitropa Cup Open 2019"]
[Site "Radenci"]
[Date "2019.05.27"]
[Round "1.3"]
[White "Schmidek, Emil"]
[Black "Kozak, Adam"]
[Result "0-1"]
[ECO "C65"]
[WhiteElo "2396"]
[BlackElo "2458"]
[Annotator "RC"]
[PlyCount "136"]
[EventDate "2019.05.27"]
[EventType "team-tourn"]
[EventCountry "SLO"]
[SourceTitle "playchess.com"]
[Source "ChessBase"]
[SourceQuality "1"]
[WhiteTeam "Germany"]
[BlackTeam "Hungary"]
[WhiteTeamCountry "GER"]
[BlackTeamCountry "HUN"]
[TimeControl "40/5400+30:1800+30"]

1. e4 {[%emt 0:00:00]} e5 {[%emt 0:00:00]} 2. Nf3 {[%emt 0:00:00]} Nc6 {[%emt 0:00:00]} 3. Bb5 {[%emt 0:00:00]} Nf6 {[%emt 0:00:00]} 4. d3 {[%emt 0:00:00]} Bc5 {[%emt 0:00:00]} 5. O-O {[%emt 0:00:07]} Nd4 {[%emt 0:00:02]} 6. Bc4 {[%emt 0:05:31]} d6 {[%emt 0:03:59]} 7. h3 {[%emt 0:07:05]} Nxf3+ {[%emt 0:04:33]} 8. Qxf3 {[%emt 0:00:12]} h6 {[%emt 0:00:05]} 9. Nc3 {[%emt 0:09:43]} O-O {[%emt 0:07:31]} 10. Ne2 {[%emt 0:11:57]} Nh7 {[%emt 0:06:56]} 11. Ng3 {[%emt 0:10:06]} Qh4 {[%emt 0:10:09]} 12. Nf5 {[%emt 0:05:44]} Qf6 {[%emt 0:00:28]} 13. g4 {[%emt 0:09:18]} Be6 {[%emt 0:08:59]} 14. Bb3 {[%emt 0:01:53]} a5 {[%emt 0:12:06]} 15. c3 {[%emt 0:07:22]} c6 {[%emt 0:02:54]} 16. Kh1 {[%emt 0:02:37]} d5 {[%emt 0:06:14]} 17. Qg3 {[%emt 0:05:19]} dxe4 {[%emt 0:15:22]} 18. dxe4 {[%emt 0:00:09]} Rfd8 {[%emt 0:03:37]} 19. f4 {[%emt 0:02:03]} Bxf5 {[%emt 0:00:24]} 20. gxf5 {[%emt 0:04:02]} Bd6 {[%emt 0:00:54]} 21. a3 {[%emt 0:01:16]} Re8 {[%emt 0:07:25]} 22. Qg6 {[%emt 0:08:18]} exf4 {[%emt 0:03:35]} 23. Bxf4 {[%emt 0:00:49]} Bxf4 {[%emt 0:00:43]} 24. Rxf4 {[%emt 0:00:02]} Ng5 {[%emt 0:00:27]} 25. Qxf6 {[%emt 0:04:23]} gxf6 {[%emt 0:00:02]} 26. Rg1 {[%emt 0:00:48]} Kf8 {[%emt 0:00:34]} 27. Re1 {[%emt 0:02:31]} Nxh3 {[%emt 0:00:21]} 28. Rh4 {[%emt 0:00:50]} Ng5 {[%emt 0:01:17]} 29. Rxh6 {[%emt 0:00:35]} Kg7 {[%emt 0:00:05]} 30. Rh4 {[%emt 0:01:35]} Re5 {[%emt 0:01:50]} 31. Bc2 {[%emt 0:00:41]} Rae8 {[%emt 0:00:03]} 32. Rg1 {[%emt 0:00:19]} Rd8 {[%emt 0:02:05]} 33. Rh2 {[%emt 0:00:16]} Rd7 {[%emt 0:00:45]} 34. Re2 {[%emt 0:00:30]} Re8 {[%emt 0:01:38]} 35. Kg2 {[%emt 0:00:12]} Rde7 {[%emt 0:00:54]} 36. Kg3 {[%emt 0:01:14]} Rh8 {[%emt 0:00:57]} 37. Rh2 {[%emt 0:00:32]} Rxh2 {[%emt 0:00:23]} 38. Kxh2 {[%emt 0:00:01]} Kf8 {[%emt 0:00:01]} 39. Rg4 {[%emt 0:00:55]} Nf3+ {[%emt 0:01:24]} 40. Kg3 {[%emt 0:00:00]} Ne5 {[%emt 0:00:00]} 41. Rh4 {[%emt 0:01:29]} Nc4 {[%emt 0:05:24]} 42. e5 {[%emt 0:10:56]} Nxe5 {[%emt 0:00:14]} 43. Kf2 {[%emt 0:00:17]} Rd7 {[%emt 0:01:52]} 44. Ke2 {[%emt 0:01:14]} Ke7 {[%emt 0:00:05]} 45. a4 {[%emt 0:05:39]} Rd8 {[%emt 0:00:22]} 46. b4 {[%emt 0:02:55]} b6 {[%emt 0:02:17]} 47. Be4 {[%emt 0:04:50]} axb4 {[%emt 0:01:21]} 48. cxb4 {[%emt 0:00:02]} Rd4 {[%emt 0:00:11]} 49. a5 {[%emt 0:00:47]} bxa5 {[%emt 0:00:38]} 50. bxa5 {[%emt 0:00:10]} Ra4 {[%emt 0:00:07]} 51. a6 {[%emt 0:02:20]} Rxa6 {[%emt 0:00:31]} 52. Bc2 {[%emt 0:00:17]} Ra2 {[%emt 0:00:27]} 53. Kd1 {[%emt 0:00:08]} c5 {[%emt 0:02:59]} 54. Rh8 {[%emt 0:01:51]} Nf3 {[%emt 0:02:17]} 55. Be4 {[%emt 0:01:28]} Ne5 {[%emt 0:04:24]} 56. Rb8 {[%emt 0:00:47]} c4 {[%emt 0:03:09]} 57. Rc8 {[%emt 0:01:54]} Kd7 {[%emt 0:02:11]} 58. Rc5 {[%emt 0:00:19]} Kd6 {[%emt 0:00:18]} 59. Rd5+ {[%emt 0:00:16]} Kc7 {[%emt 0:00:45]} 60. Rc5+ {[%emt 0:01:02]} Kb6 {[%emt 0:00:34]} 61. Rc8 {[%emt 0:00:04]} Kb5 {[%emt 0:01:39]} 62. Rc7 {[%emt 0:02:01]} Kb4 {[%emt 0:01:17]} 63. Bd5 {[%emt 0:00:28]} Rf2 {[%emt 0:00:23]} 64. Be4 {[%emt 0:00:55]} Kc3 {[%emt 0:00:53]} 65. Ke1 {[%emt 0:00:30]} Rf4 {[%emt 0:00:49]} 66. Bb1 {[%emt 0:00:21]} Rh4 {[%emt 0:01:34]} 67. Rb7 {[%emt 0:00:33]} Rh1+ {[%emt 0:01:12]} 68. Ke2 {[%emt 0:00:09]} Rh2+ {[%emt 0:00:39]} 0-1

[Event "Mitropa Cup Open 2019"]
[Site "Radenci"]
[Date "2019.05.27"]
[Round "1.15"]
[White "Di Nicolantonio, Lucas"]
[Black "Gaehwiler, Gabriel"]
[Result "1-0"]
[ECO "B94"]
[WhiteElo "2379"]
[BlackElo "2431"]
[Annotator "RC"]
[PlyCount "85"]
[EventDate "2019.05.27"]
[EventType "team-tourn"]
[EventCountry "SLO"]
[SourceTitle "playchess.com"]
[Source "ChessBase"]
[SourceQuality "1"]
[WhiteTeam "France"]
[BlackTeam "Switzerland"]
[WhiteTeamCountry "FRA"]
[BlackTeamCountry "SUI"]
[TimeControl "40/5400+30:1800+30"]

1. e4 {[%emt 0:00:00]} c5 {[%emt 0:00:00]} 2. Nf3 {[%emt 0:00:00]} d6 {[%emt 0:00:00]} 3. d4 {[%emt 0:00:04]} cxd4 {[%emt 0:00:57]} 4. Nxd4 {[%emt 0:00:07]} Nf6 {[%emt 0:00:10]} 5. Nc3 {[%emt 0:00:09]} a6 {[%emt 0:00:07]} 6. Bg5 {[%emt 0:00:52]} Nbd7 {[%emt 0:00:13]} 7. Qe2 {[%emt 0:00:23]} b5 {[%emt 0:06:28]} 8. O-O-O {[%emt 0:17:11]} Bb7 {[%emt 0:04:15]} 9. f4 {[%emt 0:03:08]} Rc8 {[%emt 0:06:53]} 10. e5 {[%emt 0:30:34]} Rxc3 {[%emt 0:02:31]} 11. exf6 {[%emt 0:08:03]} gxf6 {[%emt 0:03:26]} 12. Nf5 {[%emt 0:04:16]} Rc6 {[%emt 0:12:16]} 13. Bh4 {[%emt 0:08:48]} e6 {[%emt 0:11:43]} 14. Kb1 {[%emt 0:09:20]} Qc7 {[%emt 0:12:07]} 15. Nd4 {[%emt 0:06:40]} Rc5 {[%emt 0:12:57]} 16. Qe3 {[%emt 0:00:56]} Be7 {[%emt 0:02:26]} 17. Bd3 {[%emt 0:00:38]} Nb6 {[%emt 0:13:35]} 18. Rhe1 {[%emt 0:00:27]} Nc4 {[%emt 0:02:28]} 19. Nxe6 {[%emt 0:03:11]} fxe6 {[%emt 0:00:37]} 20. Qxe6 {[%emt 0:00:13]} Ne5 {[%emt 0:02:37]} 21. fxe5 {[%emt 0:01:19]} fxe5 {[%emt 0:00:55]} 22. Rf1 {[%emt 0:02:32]} Bc8 {[%emt 0:02:42]} 23. Qf7+ {[%emt 0:00:12]} Kd8 {[%emt 0:00:01]} 24. Qg7 {[%emt 0:01:30]} Re8 {[%emt 0:00:03]} 25. Qxh7 {[%emt 0:00:32]} Be6 {[%emt 0:00:28]} 26. Bg6 {[%emt 0:00:34]} Rg8 {[%emt 0:02:11]} 27. Qxe7+ {[%emt 0:00:33]} Qxe7 {[%emt 0:00:02]} 28. Rxd6+ {[%emt 0:00:16]} Bd7 {[%emt 0:00:18]} 29. Bxe7+ {[%emt 0:00:21]} Kxe7 {[%emt 0:00:01]} 30. Rxa6 {[%emt 0:00:24]} Rc6 {[%emt 0:00:49]} 31. Rxc6 {[%emt 0:01:41]} Bxc6 {[%emt 0:00:01]} 32. Bf5 {[%emt 0:00:35]} Rxg2 {[%emt 0:00:10]} 33. h3 {[%emt 0:00:11]} e4 {[%emt 0:00:52]} 34. Kc1 {[%emt 0:00:30]} Kd6 {[%emt 0:00:27]} 35. Bg4 {[%emt 0:00:38]} Ke5 {[%emt 0:00:37]} 36. Re1 {[%emt 0:00:30]} Kf4 {[%emt 0:01:21]} 37. Re2 {[%emt 0:00:12]} Rxe2 {[%emt 0:01:13]} 38. Bxe2 {[%emt 0:00:05]} Ke3 {[%emt 0:00:19]} 39. Kd1 {[%emt 0:01:00]} Kf2 {[%emt 0:00:24]} 40. h4 {[%emt 0:00:00]} e3 {[%emt 0:00:00]} 41. h5 {[%emt 0:02:31]} Bg2 {[%emt 0:08:08]} 42. h6 {[%emt 0:01:12]} Bf1 {[%emt 0:00:03]} 43. Bh5 {[%emt 0:02:21]} 1-0

[Event "Mitropa Cup Open 2019"]
[Site "Radenci"]
[Date "2019.05.27"]
[Round "1.19"]
[White "Repka, Christopher"]
[Black "Tica, Sven"]
[Result "1-0"]
[ECO "D36"]
[WhiteElo "2482"]
[BlackElo "2417"]
[Annotator "RC"]
[PlyCount "73"]
[EventDate "2019.05.27"]
[EventType "team-tourn"]
[EventCountry "SLO"]
[SourceTitle "playchess.com"]
[Source "ChessBase"]
[SourceQuality "1"]
[WhiteTeam "Slovakia"]
[BlackTeam "Croatia"]
[WhiteTeamCountry "SVK"]
[BlackTeamCountry "CRO"]
[TimeControl "40/5400+30:1800+30"]

1. d4 {[%emt 0:00:00]} d5 {[%emt 0:00:00]} 2. c4 {[%emt 0:00:00]} e6 {[%emt 0:00:00]} 3. Nc3 {[%emt 0:00:00]} Nf6 {[%emt 0:00:00]} 4. cxd5 {[%emt 0:00:13]} exd5 {[%emt 0:00:02]} 5. Bg5 {[%emt 0:00:04]} c6 {[%emt 0:01:53]} 6. Qc2 {[%emt 0:01:45]} Bd6 {[%emt 0:00:00]} 7. e3 {[%emt 0:00:10]} O-O {[%emt 0:00:00]} 8. Bd3 {[%emt 0:00:04]} h6 {[%emt 0:00:00]} 9. Bh4 {[%emt 0:00:03]} Re8 {[%emt 0:00:00]} 10. Nge2 {[%emt 0:00:04]} Nbd7 {[%emt 0:03:15]} 11. h3 {[%emt 0:01:32]} Nf8 {[%emt 0:03:13]} 12. g4 {[%emt 0:00:14]} Ne6 {[%emt 0:03:44]} 13. O-O-O {[%emt 0:01:07]} b5 {[%emt 0:10:02]} 14. f4 {[%emt 0:01:42]} b4 {[%emt 0:09:27]} 15. Na4 {[%emt 0:00:04]} Bd7 {[%emt 0:00:39]} 16. Kb1 {[%emt 0:03:58]} Rc8 {[%emt 0:12:23]} 17. Nc5 {[%emt 0:14:02]} Nxc5 18. dxc5 {[%emt 0:00:00]} Bf8 {[%emt 0:02:44]} 19. e4 {[%emt 0:00:00]} g5 {[%emt 0:06:48]} 20. fxg5 {[%emt 0:14:16]} Nxe4 21. Bxe4 Rxe4 22. Ng3 Rc4 23. Qd2 Be7 24. b3 Rc3 25. Nh5 hxg5 26. Qd4 Qf8 27. Be1 Rf3 28. Bxb4 f5 29. Rde1 Be8 30. Bc3 Bg6 31. Re6 Bxh5 32. gxh5 Kh7 33. Rhe1 Bxc5 34. Qe5 Qf7 35. Rg6 Rg8 36. Rxc6 Bb6 37. Qxd5 {[%emt 0:00:00]} 1-0

[Event "Mitropa Cup Open 2019"]
[Site "Radenci"]
[Date "2019.05.28"]
[Round "2.1"]
[White "Mihok, Oliver"]
[Black "Jovanic, Ognjen"]
[Result "1-0"]
[ECO "C43"]
[WhiteElo "2541"]
[BlackElo "2511"]
[Annotator "RC"]
[PlyCount "87"]
[EventDate "2019.05.27"]
[EventType "team-tourn"]
[EventCountry "SLO"]
[SourceTitle "playchess.com"]
[Source "ChessBase"]
[SourceQuality "1"]
[WhiteTeam "Hungary"]
[BlackTeam "Croatia"]
[WhiteTeamCountry "HUN"]
[BlackTeamCountry "CRO"]
[TimeControl "40/5400+30:1800+30"]

1. e4 {[%emt 0:00:00]} e5 {[%emt 0:00:00]} 2. Nf3 {[%emt 0:00:00]} Nf6 {[%emt 0:00:00]} 3. d4 {[%emt 0:00:00]} Nxe4 {[%emt 0:01:18]} 4. Bd3 {[%emt 0:00:02]} d5 {[%emt 0:00:32]} 5. Nxe5 {[%emt 0:00:06]} Nd7 {[%emt 0:00:50]} 6. Nxd7 {[%emt 0:00:06]} Bxd7 {[%emt 0:00:14]} 7. O-O {[%emt 0:00:26]} Bd6 {[%emt 0:01:05]} 8. Qh5 {[%emt 0:00:06]} Qf6 {[%emt 0:15:43]} 9. Nc3 {[%emt 0:00:30]} Qxd4 {[%emt 0:00:54]} 10. Be3 {[%emt 0:00:54]} Qe5 {[%emt 0:01:19]} 11. Qxe5+ {[%emt 0:00:33]} Bxe5 {[%emt 0:00:03]} 12. Nxd5 {[%emt 0:00:08]} Nf6 {[%emt 0:03:50]} 13. Rae1 {[%emt 0:00:19]} Nxd5 {[%emt 0:02:08]} 14. Bd4 {[%emt 0:00:59]} f6 {[%emt 0:13:17]} 15. Bxe5 {[%emt 0:03:11]} O-O-O {[%emt 0:09:32]} 16. Bg3 {[%emt 0:06:38]} Nb4 {[%emt 0:06:38]} 17. Bc4 {[%emt 0:13:44]} Nxc2 {[%emt 0:04:37]} 18. Re7 {[%emt 0:02:47]} g5 {[%emt 0:02:45]} 19. Rd1 {[%emt 0:11:19]} Nb4 {[%emt 0:15:31]} 20. Rdxd7 {[%emt 0:12:09]} Rxd7 {[%emt 0:00:01]} 21. Be6 {[%emt 0:00:09]} Rhd8 {[%emt 0:00:05]} 22. Rxh7 {[%emt 0:00:13]} Nd5 {[%emt 0:01:24]} 23. h4 {[%emt 0:05:51]} gxh4 {[%emt 0:00:24]} 24. Bxh4 {[%emt 0:00:10]} c5 {[%emt 0:01:03]} 25. Rf7 {[%emt 0:01:10]} b5 {[%emt 0:07:32]} 26. g4 {[%emt 0:03:10]} Kc7 {[%emt 0:02:55]} 27. Bxd5 {[%emt 0:00:50]} Kd6 {[%emt 0:02:06]} 28. Rxf6+ {[%emt 0:03:15]} Kxd5 {[%emt 0:00:02]} 29. Rf5+ {[%emt 0:00:07]} Kd4 {[%emt 0:00:14]} 30. Bxd8 {[%emt 0:03:40]} Rxd8 {[%emt 0:00:02]} 31. g5 {[%emt 0:01:23]} a6 {[%emt 0:03:10]} 32. g6 {[%emt 0:06:41]} c4 {[%emt 0:00:01]} 33. g7 {[%emt 0:01:14]} Rg8 {[%emt 0:00:02]} 34. Rf7 {[%emt 0:00:12]} Ke5 {[%emt 0:04:22]} 35. Kf1 {[%emt 0:01:35]} Ke6 {[%emt 0:00:02]} 36. Ra7 {[%emt 0:01:55]} Kf6 {[%emt 0:00:01]} 37. a3 {[%emt 0:03:13]} Rxg7 {[%emt 0:04:02]} 38. Rxa6+ {[%emt 0:00:05]} Ke5 {[%emt 0:00:07]} 39. Rb6 {[%emt 0:00:17]} Kd4 {[%emt 0:00:07]} 40. Rxb5 {[%emt 0:00:00]} Kd3 {[%emt 0:00:00]} 41. a4 {[%emt 0:03:16]} Ra7 {[%emt 0:04:16]} 42. a5 {[%emt 0:01:37]} Ra8 {[%emt 0:00:00]} 43. Kg2 {[%emt 0:05:48]} Ke4 {[%emt 0:00:32]} 44. Rb4 {[%emt 0:02:34]} 1-0

[Event "Mitropa Cup Open 2019"]
[Site "Radenci"]
[Date "2019.05.28"]
[Round "2.7"]
[White "Studer, Noel"]
[Black "Repka, Christopher"]
[Result "0-1"]
[ECO "A13"]
[WhiteElo "2517"]
[BlackElo "2482"]
[Annotator "RC"]
[PlyCount "66"]
[EventDate "2019.05.27"]
[EventType "team-tourn"]
[EventCountry "SLO"]
[SourceTitle "playchess.com"]
[Source "ChessBase"]
[SourceQuality "1"]
[WhiteTeam "Switzerland"]
[BlackTeam "Slovakia"]
[WhiteTeamCountry "SUI"]
[BlackTeamCountry "SVK"]
[TimeControl "40/5400+30:1800+30"]

1. c4 {[%emt 0:00:00]} e6 {[%emt 0:00:08]} 2. g3 {[%emt 0:00:00]} d5 {[%emt 0:00:22]} 3. Bg2 {[%emt 0:00:00]} a6 {[%emt 0:00:42]} 4. Qb3 {[%emt 0:13:08]} Nf6 {[%emt 0:01:52]} 5. d4 {[%emt 0:01:33]} c5 {[%emt 0:08:05]} 6. cxd5 {[%emt 0:11:37]} exd5 {[%emt 0:00:12]} 7. Bg5 {[%emt 0:00:03]} Nc6 {[%emt 0:06:04]} 8. Bxf6 {[%emt 0:13:52]} Qxf6 {[%emt 0:00:21]} 9. Bxd5 {[%emt 0:00:17]} Nxd4 {[%emt 0:01:04]} 10. Qd3 {[%emt 0:01:05]} Bf5 {[%emt 0:13:42]} 11. e4 {[%emt 0:04:48]} Bg4 {[%emt 0:00:39]} 12. Nc3 {[%emt 0:01:16]} Rd8 {[%emt 0:00:38]} 13. Rc1 {[%emt 0:03:56]} b5 {[%emt 0:11:36]} 14. b3 {[%emt 0:06:55]} c4 {[%emt 0:02:03]} 15. bxc4 {[%emt 0:06:48]} Ba3 {[%emt 0:00:33]} 16. Rb1 {[%emt 0:04:19]} bxc4 {[%emt 0:00:55]} 17. Qxc4 {[%emt 0:00:47]} Rc8 {[%emt 0:05:55]} 18. Qa4+ {[%emt 0:05:19]} Bd7 {[%emt 0:10:46]} 19. Bxf7+ {[%emt 0:00:20]} Qxf7 {[%emt 0:00:04]} 20. Qxd4 {[%emt 0:00:04]} O-O {[%emt 0:00:06]} 21. f4 {[%emt 0:02:15]} Rc4 {[%emt 0:03:44]} 22. Qd3 {[%emt 0:00:38]} Bb4 {[%emt 0:00:57]} 23. Rxb4 {[%emt 0:11:00]} Rxb4 {[%emt 0:00:05]} 24. Nf3 {[%emt 0:00:02]} Bb5 {[%emt 0:01:44]} 25. Qd2 {[%emt 0:00:09]} Rb8 {[%emt 0:10:07]} 26. Ne5 {[%emt 0:05:01]} Qe6 {[%emt 0:03:15]} 27. Kf2 {[%emt 0:03:14]} Bc6 {[%emt 0:08:46]} 28. Rc1 {[%emt 0:00:08]} Bxe4 {[%emt 0:00:57]} 29. Nxe4 {[%emt 0:00:13]} Rb2 {[%emt 0:00:24]} 30. Rc2 {[%emt 0:02:11]} Qxa2 {[%emt 0:00:04]} 31. Kf3 {[%emt 0:00:12]} Rxc2 {[%emt 0:00:31]} 32. Qd6 {[%emt 0:00:03]} Re8 {[%emt 0:03:36]} 33. f5 {[%emt 0:00:34]} Qa5 {[%emt 0:01:02]} 0-1

[Event "Mitropa Cup Open 2019"]
[Site "Radenci"]
[Date "2019.05.28"]
[Round "2.13"]
[White "Dragnev, Valentin"]
[Black "Stella, Andrea"]
[Result "1-0"]
[ECO "D37"]
[WhiteElo "2521"]
[BlackElo "2511"]
[Annotator "RC"]
[PlyCount "35"]
[EventDate "2019.05.27"]
[EventType "team-tourn"]
[EventCountry "SLO"]
[SourceTitle "playchess.com"]
[Source "ChessBase"]
[SourceQuality "1"]
[WhiteTeam "Austria"]
[BlackTeam "Italy"]
[WhiteTeamCountry "AUT"]
[BlackTeamCountry "ITA"]
[TimeControl "40/5400+30:1800+30"]

1. d4 {[%emt 0:00:00]} Nf6 {[%emt 0:00:00]} 2. c4 {[%emt 0:00:00]} e6 {[%emt 0:00:00]} 3. Nf3 {[%emt 0:00:00]} d5 {[%emt 0:00:00]} 4. Nc3 {[%emt 0:00:37]} Be7 {[%emt 0:00:04]} 5. Bf4 {[%emt 0:03:12]} O-O {[%emt 0:00:08]} 6. e3 {[%emt 0:00:11]} b6 {[%emt 0:00:05]} 7. Qc2 {[%emt 0:03:01]} Ba6 {[%emt 0:04:02]} 8. Ne5 {[%emt 0:01:07]} dxc4 {[%emt 0:00:13]} 9. Be2 {[%emt 0:00:33]} Qc8 {[%emt 0:11:30]} 10. Nxc4 {[%emt 0:09:28]} Nd5 {[%emt 0:29:21]} 11. O-O {[%emt 0:16:46]} c5 {[%emt 0:13:23]} 12. Nd6 {[%emt 0:16:34]} Bxd6 {[%emt 0:10:59]} 13. Bxd6 {[%emt 0:01:04]} Nxc3 {[%emt 0:01:10]} 14. Bxa6 {[%emt 0:06:29]} Qxa6 {[%emt 0:01:01]} 15. Bxf8 {[%emt 0:02:58]} Ne2+ {[%emt 0:01:45]} 16. Kh1 {[%emt 0:00:06]} cxd4 {[%emt 0:02:33]} 17. Qe4 {[%emt 0:08:37]} Nc6 {[%emt 0:00:32]} 18. Bxg7 {[%emt 0:01:12]} 1-0

[Event "Mitropa Cup Open 2019"]
[Site "Radenci"]
[Date "2019.05.28"]
[Round "2.15"]
[White "Mesaros, Florian"]
[Black "Shytaj, Luca"]
[Result "1-0"]
[ECO "E51"]
[WhiteElo "2439"]
[BlackElo "2490"]
[Annotator "RC"]
[PlyCount "69"]
[EventDate "2019.05.27"]
[EventType "team-tourn"]
[EventCountry "SLO"]
[SourceTitle "playchess.com"]
[Source "ChessBase"]
[SourceQuality "1"]
[WhiteTeam "Austria"]
[WhiteTeamCountry "AUT"]
[TimeControl "40/5400+30:1800+30"]

1. d4 {[%emt 0:00:00]} Nf6 {[%emt 0:00:00]} 2. c4 {[%emt 0:00:00]} e6 {[%emt 0:00:16]} 3. Nc3 {[%emt 0:00:00]} Bb4 {[%emt 0:00:34]} 4. e3 {[%emt 0:00:22]} O-O {[%emt 0:00:49]} 5. Nf3 {[%emt 0:00:12]} d5 {[%emt 0:00:46]} 6. Bd2 {[%emt 0:00:41]} b6 {[%emt 0:02:52]} 7. cxd5 {[%emt 0:00:17]} exd5 {[%emt 0:00:28]} 8. Rc1 {[%emt 0:00:10]} a6 {[%emt 0:03:28]} 9. Bd3 {[%emt 0:00:24]} Bd6 {[%emt 0:08:22]} 10. O-O {[%emt 0:04:26]} Re8 {[%emt 0:04:50]} 11. b4 {[%emt 0:10:54]} Bxb4 {[%emt 0:11:36]} 12. Ne5 {[%emt 0:01:10]} Bb7 {[%emt 0:04:18]} 13. Be1 {[%emt 0:12:46]} c5 {[%emt 0:24:09]} 14. f4 {[%emt 0:01:58]} Qd6 {[%emt 0:02:27]} 15. Bg3 {[%emt 0:14:29]} Nc6 {[%emt 0:02:50]} 16. Ne2 {[%emt 0:08:57]} Rac8 {[%emt 0:04:55]} 17. Bh4 {[%emt 0:04:06]} cxd4 {[%emt 0:04:51]} 18. exd4 {[%emt 0:02:06]} Ne4 {[%emt 0:00:43]} 19. Bxe4 {[%emt 0:03:36]} dxe4 {[%emt 0:00:05]} 20. Nc4 {[%emt 0:02:40]} Qc7 {[%emt 0:06:04]} 21. a3 {[%emt 0:09:10]} Bd6 {[%emt 0:01:50]} 22. Qb3 {[%emt 0:03:08]} b5 {[%emt 0:00:31]} 23. Ne5 {[%emt 0:00:32]} Bxe5 {[%emt 0:00:48]} 24. fxe5 {[%emt 0:02:39]} Qd7 {[%emt 0:00:27]} 25. Rcd1 {[%emt 0:01:22]} Rc7 {[%emt 0:02:26]} 26. Qg3 {[%emt 0:03:45]} Ne7 {[%emt 0:01:34]} 27. Bxe7 {[%emt 0:02:05]} Qxe7 {[%emt 0:01:09]} 28. Nf4 {[%emt 0:00:40]} Kh8 {[%emt 0:04:40]} 29. Kh1 {[%emt 0:03:38]} Rc2 {[%emt 0:02:16]} 30. Nh5 {[%emt 0:02:37]} Rg8 {[%emt 0:00:12]} 31. d5 {[%emt 0:00:55]} Rc5 {[%emt 0:01:13]} 32. Nf4 {[%emt 0:02:45]} Rd8 {[%emt 0:01:31]} 33. e6 {[%emt 0:01:25]} f6 {[%emt 0:00:54]} 34. d6 {[%emt 0:00:14]} Qe8 {[%emt 0:00:23]} 35. e7 {[%emt 0:00:33]} 1-0